[Event "CCT Chessable Masters Play-In 2025"]
[Site "Online"]
[Date "2025.02.17"]
[Round "1.22"]
[White "Mitrabha, Guha"]
[Black "Lu, Shanglei"]
[Result "0-1"]
[ECO "A09"]
[WhiteElo "2499"]
[BlackElo "2618"]
[PlyCount "142"]
[EventDate "2025.02.13"]
[EventType "swiss"]
[EventCountry "NET"]
[TimeControl "600"]
[BlackClock "0:00:39"]

1. Nf3 {[%emt 0:00:14]} Nf6 {[%emt 0:00:03]} 2. g3 {[%emt 0:00:13]} d5 {[%emt 0:00:01]} 3. Bg2 {[%emt 0:00:13]} c5 {[%emt 0:00:01]} 4. O-O {[%emt 0:00:01]} Nc6 {[%emt 0:00:02]} 5. c4 {[%emt 0:00:01]} d4 {[%emt 0:00:07]} 6. e3 {[%emt 0:00:08]} e5 {[%emt 0:00:14]} 7. d3 {[%emt 0:00:07]} Be7 {[%emt 0:00:11]} 8. exd4 {[%emt 0:00:02]} cxd4 {[%emt 0:00:00]} 9. Bg5 {[%emt 0:00:02]} O-O {[%emt 0:00:10]} 10. a3 {[%emt 0:00:02]} a5 {[%emt 0:00:01]} 11. Bxf6 {[%emt 0:00:01]} Bxf6 {[%emt 0:00:04]} 12. Nbd2 {[%emt 0:00:00]} Be7 {[%emt 0:00:03]} 13. Re1 {[%emt 0:00:02]} f6 {[%emt 0:00:02]} 14. Rb1 {[%emt 0:00:02]} Bf5 {[%emt 0:00:10]} 15. Qe2 {[%emt 0:00:02]} Qd7 {[%emt 0:00:08]} 16. Nh4 {[%emt 0:00:02]} Bg4 {[%emt 0:00:06]} 17. Bf3 {[%emt 0:00:05]} Be6 {[%emt 0:00:07]} 18. Be4 {[%emt 0:00:15]} Bd6 {[%emt 0:01:21]} 19. f4 {[%emt 0:00:12]} Rfe8 {[%emt 0:00:52]} 20. f5 {[%emt 0:00:19]} Bf7 {[%emt 0:00:01]} 21. g4 {[%emt 0:00:02]} Rab8 {[%emt 0:00:09]} 22. Qg2 {[%emt 0:00:02]} Be7 {[%emt 0:00:10]} 23. Rec1 {[%emt 0:00:08]} a4 {[%emt 0:00:05]} 24. Ndf3 {[%emt 0:00:04]} Na5 {[%emt 0:00:13]} 25. g5 {[%emt 0:00:05]} Bh5 {[%emt 0:00:16]} 26. g6 {[%emt 0:00:38]} h6 {[%emt 0:00:06]} 27. Nd2 {[%emt 0:00:01]} b5 {[%emt 0:00:09]} 28. c5 {[%emt 0:00:07]} Kf8 {[%emt 0:00:19]} 29. c6 {[%emt 0:00:13]} Qd6 {[%emt 0:00:01]} 30. Rc2 {[%emt 0:00:05]} Rec8 {[%emt 0:00:03]} 31. Nf1 {[%emt 0:00:02]} b4 {[%emt 0:00:24]} 32. axb4 {[%emt 0:00:06]} Qxb4 {[%emt 0:00:26]} 33. Ng3 {[%emt 0:00:14]} a3 {[%emt 0:00:05]} 34. Nxh5 {[%emt 0:00:05]} a2 {[%emt 0:00:01]} 35. Ra1 {[%emt 0:00:02]} Nb3 {[%emt 0:00:01]} 36. Rxa2 {[%emt 0:00:07]} Qe1+ {[%emt 0:00:01]} 37. Qf1 {[%emt 0:00:00]} Qxh4 {[%emt 0:00:00]} 38. Ng3 {[%emt 0:00:03]} Rc7 {[%emt 0:00:14]} 39. Qe1 {[%emt 0:00:25]} Qg5 {[%emt 0:00:03]} 40. Kh1 {[%emt 0:00:14]} Bb4 {[%emt 0:00:03]} 41. Qd1 {[%emt 0:00:07]} Nc5 {[%emt 0:00:10]} 42. Qf3 {[%emt 0:00:26]} Ke7 {[%emt 0:00:07]} 43. Ra1 {[%emt 0:00:06]} Qe3 {[%emt 0:00:08]} 44. Kg2 {[%emt 0:00:23]} Nb3 {[%emt 0:00:10]} 45. Rd1 {[%emt 0:00:08]} Nd2 {[%emt 0:00:08]} 46. Qf2 {[%emt 0:00:04]} Nb3 {[%emt 0:00:10]} 47. Rc4 {[%emt 0:00:29]} Na5 {[%emt 0:00:05]} 48. Rc2 {[%emt 0:00:18]} Nb3 {[%emt 0:00:05]} 49. Re2 {[%emt 0:00:07]} Qg5 {[%emt 0:00:06]} 50. Qf3 {[%emt 0:00:07]} Nd2 {[%emt 0:00:09]} 51. Qf2 {[%emt 0:00:29]} Nb3 {[%emt 0:00:01]} 52. Kh3 {[%emt 0:00:03]} h5 {[%emt 0:00:05]} 53. Bd5 {[%emt 0:00:20]} Nc5 {[%emt 0:00:23]} 54. Qf3 {[%emt 0:00:06]} Rh8 {[%emt 0:00:09]} 55. Ne4 {[%emt 0:00:03]} Nxe4 {[%emt 0:00:02]} 56. Bxe4 {[%emt 0:00:00]} Ra7 {[%emt 0:00:05]} 57. Rc2 {[%emt 0:00:02]} Kd6 {[%emt 0:00:02]} 58. Rc4 {[%emt 0:00:07]} Rb8 {[%emt 0:00:01]} 59. c7 {[%emt 0:00:16]} Rxc7 {[%emt 0:00:02]} 60. Rxc7 {[%emt 0:00:01]} Kxc7 {[%emt 0:00:00]} 61. Ra1 {[%emt 0:00:01]} Bc5 {[%emt 0:00:04]} 62. Ra2 {[%emt 0:00:07]} Kd6 {[%emt 0:00:06]} 63. Ra6+ {[%emt 0:00:06]} Rb6 {[%emt 0:00:01]} 64. Rxb6+ {[%emt 0:00:04]} Bxb6 {[%emt 0:00:00]} 65. Bb7 {[%emt 0:00:00]} Ke7 {[%emt 0:00:09]} 66. Be4 {[%emt 0:00:04]} Ba5 {[%emt 0:00:02]} 67. Qg3 {[%emt 0:00:06]} Bd2 {[%emt 0:00:09]} 68. b3 {[%emt 0:00:08]} Kd6 {[%emt 0:00:01]} 69. Qf3 {[%emt 0:00:08]} Kc5 {[%emt 0:00:02]} 70. Qg3 {[%emt 0:00:04]} Qe3 {[%emt 0:00:05]} 71. Kh4 Be1 {[%emt 0:00:01]} 0-1

[Event "CCT Chessable Masters Play-In 2025"]
[Site "Online"]
[Date "2025.02.17"]
[Round "1.23"]
[White "Robson, Ray"]
[Black "Meshkovs, Nikita"]
[Result "1-0"]
[ECO "E53"]
[WhiteElo "2689"]
[BlackElo "2531"]
[PlyCount "73"]
[EventDate "2025.02.13"]
[EventType "swiss"]
[EventCountry "NET"]
[TimeControl "600"]
[WhiteClock "0:02:06"]
[BlackClock "0:01:01"]

1. d4 {[%emt 0:00:03]} Nf6 {[%emt 0:00:02]} 2. c4 {[%emt 0:00:03]} e6 {[%emt 0:00:02]} 3. Nc3 {[%emt 0:00:01]} Bb4 {[%emt 0:00:03]} 4. e3 {[%emt 0:00:01]} O-O {[%emt 0:00:07]} 5. Bd3 {[%emt 0:00:01]} d5 {[%emt 0:00:04]} 6. a3 {[%emt 0:00:02]} Bxc3+ {[%emt 0:00:17]} 7. bxc3 {[%emt 0:00:00]} dxc4 {[%emt 0:00:01]} 8. Bxc4 {[%emt 0:00:00]} c5 {[%emt 0:00:00]} 9. Nf3 {[%emt 0:00:01]} b6 {[%emt 0:00:04]} 10. Qe2 {[%emt 0:00:32]} Nc6 {[%emt 0:00:07]} 11. O-O {[%emt 0:00:05]} Qc7 {[%emt 0:00:01]} 12. e4 {[%emt 0:00:15]} e5 {[%emt 0:01:31]} 13. h3 {[%emt 0:01:29]} Re8 {[%emt 0:00:49]} 14. Ng5 {[%emt 0:00:59]} Re7 {[%emt 0:00:56]} 15. d5 {[%emt 0:00:30]} Na5 {[%emt 0:00:01]} 16. f4 {[%emt 0:00:00]} b5 {[%emt 0:01:46]} 17. d6 {[%emt 0:01:39]} Qxd6 {[%emt 0:00:03]} 18. fxe5 {[%emt 0:00:01]} Qxe5 {[%emt 0:00:08]} 19. Bf4 {[%emt 0:00:02]} Qxc3 {[%emt 0:00:08]} 20. Bxf7+ {[%emt 0:00:01]} Rxf7 {[%emt 0:00:06]} 21. Nxf7 {[%emt 0:00:00]} Qc4 {[%emt 0:01:18]} 22. Qxc4 {[%emt 0:00:02]} Nxc4 {[%emt 0:00:01]} 23. Nd6 {[%emt 0:00:00]} Nxd6 {[%emt 0:00:16]} 24. Bxd6 {[%emt 0:00:01]} Be6 {[%emt 0:00:00]} 25. Bxc5 {[%emt 0:00:26]} Nxe4 {[%emt 0:00:02]} 26. Bd4 {[%emt 0:00:05]} Bc4 {[%emt 0:00:17]} 27. Rfe1 {[%emt 0:00:19]} Ng3 {[%emt 0:00:02]} 28. Kh2 {[%emt 0:00:09]} Ne2 {[%emt 0:00:02]} 29. Bb2 {[%emt 0:00:00]} a5 {[%emt 0:00:04]} 30. Rad1 {[%emt 0:00:02]} Ra7 {[%emt 0:00:03]} 31. Rd8+ {[%emt 0:00:15]} Kf7 {[%emt 0:00:01]} 32. Red1 {[%emt 0:00:07]} g5 {[%emt 0:00:20]} 33. R1d6 {[%emt 0:00:28]} Nf4 {[%emt 0:00:04]} 34. Rh6 {[%emt 0:00:06]} Re7 {[%emt 0:00:11]} 35. Rf6+ {[%emt 0:00:04]} Kg7 {[%emt 0:00:01]} 36. Rxf4+ {[%emt 0:00:02]} Kg6 {[%emt 0:00:01]} 37. Rf6+ {[%emt 0:00:03]} 1-0

[Event "CCT Chessable Masters Play-In 2025"]
[Site "Online"]
[Date "2025.02.17"]
[Round "1.25"]
[White "Esipenko, Andrey"]
[Black "Naroditsky, Daniel"]
[Result "0-1"]
[ECO "E73"]
[WhiteElo "2695"]
[BlackElo "2619"]
[PlyCount "68"]
[EventDate "2025.02.13"]
[EventType "swiss"]
[EventCountry "NET"]
[TimeControl "600"]
[WhiteClock "0:02:56"]
[BlackClock "0:03:18"]

1. d4 {[%emt 0:00:05]} Nf6 {[%emt 0:00:03]} 2. c4 {[%emt 0:00:01]} g6 {[%emt 0:00:01]} 3. Nc3 {[%emt 0:00:01]} Bg7 {[%emt 0:00:00]} 4. e4 {[%emt 0:00:02]} d6 {[%emt 0:00:00]} 5. h4 {[%emt 0:00:15]} O-O {[%emt 0:00:07]} 6. Be2 {[%emt 0:00:00]} c5 {[%emt 0:00:06]} 7. d5 {[%emt 0:00:02]} b5 {[%emt 0:00:00]} 8. cxb5 {[%emt 0:00:01]} a6 {[%emt 0:00:01]} 9. a4 {[%emt 0:00:05]} axb5 {[%emt 0:00:02]} 10. Bxb5 {[%emt 0:00:00]} Ba6 {[%emt 0:00:06]} 11. Bxa6 {[%emt 0:00:18]} Nxa6 {[%emt 0:00:02]} 12. Nf3 {[%emt 0:00:07]} Qd7 {[%emt 0:00:12]} 13. O-O {[%emt 0:00:16]} Qg4 {[%emt 0:00:02]} 14. Re1 {[%emt 0:00:09]} Nd7 {[%emt 0:00:04]} 15. Bg5 {[%emt 0:00:05]} Rfe8 {[%emt 0:00:12]} 16. Qe2 {[%emt 0:00:02]} h6 {[%emt 0:00:12]} 17. Bc1 {[%emt 0:00:25]} Nb4 {[%emt 0:00:20]} 18. Nb5 {[%emt 0:00:07]} Rec8 {[%emt 0:00:17]} 19. Ra3 {[%emt 0:00:21]} c4 {[%emt 0:00:35]} 20. Rd1 {[%emt 0:01:35]} Ne5 {[%emt 0:01:05]} 21. Nbd4 {[%emt 0:00:12]} Ned3 {[%emt 0:00:10]} 22. Bd2 {[%emt 0:00:11]} Rab8 {[%emt 0:01:10]} 23. a5 {[%emt 0:00:09]} Nxb2 {[%emt 0:00:31]} 24. Rb1 {[%emt 0:00:03]} N2d3 {[%emt 0:00:15]} 25. g3 {[%emt 0:00:49]} Nxd5 {[%emt 0:00:23]} 26. Rxb8 {[%emt 0:00:09]} Rxb8 {[%emt 0:00:01]} 27. exd5 {[%emt 0:00:08]} Bxd4 {[%emt 0:00:01]} 28. Nxd4 {[%emt 0:01:05]} Qxd4 {[%emt 0:00:00]} 29. Bc3 {[%emt 0:00:01]} Rb1+ {[%emt 0:00:09]} 30. Kh2 {[%emt 0:00:01]} Qxd5 {[%emt 0:00:01]} 31. f3 {[%emt 0:00:00]} Qc5 {[%emt 0:00:11]} 32. Ra2 {[%emt 0:00:15]} Qg1+ {[%emt 0:00:07]} 33. Kh3 {[%emt 0:00:01]} Qh1+ {[%emt 0:00:04]} 34. Kg4 {[%emt 0:00:03]} f5# {[%emt 0:00:12]} 0-1

[Event "CCT Chessable Masters Play-In 2025"]
[Site "Online"]
[Date "2025.02.17"]
[Round "1.26"]
[White "Hong, Andrew"]
[Black "Kramnik, Vladimir"]
[Result "1-0"]
[ECO "C11"]
[WhiteElo "2579"]
[BlackElo "2753"]
[PlyCount "53"]
[EventDate "2025.02.13"]
[EventType "swiss"]
[EventCountry "NET"]
[TimeControl "600"]
[WhiteClock "0:05:08"]
[BlackClock "0:03:01"]

1. d4 {[%emt 0:00:01]} Nf6 {[%emt 0:00:03]} 2. Nc3 {[%emt 0:00:01]} e6 {[%emt 0:00:02]} 3. e4 {[%emt 0:00:03]} d5 {[%emt 0:00:01]} 4. e5 {[%emt 0:00:05]} Nfd7 {[%emt 0:00:01]} 5. f4 {[%emt 0:00:01]} c5 {[%emt 0:00:01]} 6. Nf3 {[%emt 0:00:01]} Nc6 {[%emt 0:00:01]} 7. Be3 {[%emt 0:00:01]} Be7 {[%emt 0:00:02]} 8. Qd2 {[%emt 0:00:04]} a6 {[%emt 0:00:01]} 9. Bd3 {[%emt 0:00:08]} b5 {[%emt 0:00:02]} 10. Qf2 {[%emt 0:00:09]} c4 {[%emt 0:00:11]} 11. Be2 {[%emt 0:00:05]} Nb6 {[%emt 0:00:04]} 12. a3 {[%emt 0:00:22]} Bd7 {[%emt 0:00:11]} 13. O-O {[%emt 0:00:04]} g6 {[%emt 0:00:05]} 14. Qg3 {[%emt 0:00:13]} Qc7 {[%emt 0:00:09]} 15. Ng5 {[%emt 0:00:16]} b4 {[%emt 0:00:35]} 16. axb4 {[%emt 0:00:12]} Nxb4 {[%emt 0:00:01]} 17. f5 {[%emt 0:00:57]} Nxc2 {[%emt 0:00:48]} 18. Nxf7 {[%emt 0:00:03]} Nxe3 {[%emt 0:00:18]} 19. Qxe3 {[%emt 0:00:26]} Rf8 {[%emt 0:01:14]} 20. fxg6 {[%emt 0:00:09]} hxg6 {[%emt 0:00:01]} 21. Qh6 {[%emt 0:00:01]} Rxf7 {[%emt 0:02:24]} 22. Rxf7 {[%emt 0:00:25]} Kd8 {[%emt 0:00:21]} 23. Rxe7 {[%emt 0:00:47]} Kxe7 {[%emt 0:00:02]} 24. Qh4+ {[%emt 0:00:01]} Ke8 {[%emt 0:00:10]} 25. Qh8+ {[%emt 0:00:14]} Ke7 {[%emt 0:00:02]} 26. Qf6+ {[%emt 0:00:02]} Ke8 {[%emt 0:00:09]} 27. Rf1 {[%emt 0:00:01]} 1-0

[Event "CCT Chessable Masters Play-In 2025"]
[Site "Online"]
[Date "2025.02.17"]
[Round "1.27"]
[White "Yoo, Christopher Woojin"]
[Black "Korobov, Anton"]
[Result "0-1"]
[ECO "B94"]
[WhiteElo "2588"]
[BlackElo "2627"]
[PlyCount "72"]
[EventDate "2025.02.13"]
[EventType "swiss"]
[EventCountry "NET"]
[TimeControl "600"]
[BlackClock "0:00:37"]

1. e4 {[%emt 0:00:07]} c5 {[%emt 0:00:03]} 2. Nf3 {[%emt 0:00:01]} d6 {[%emt 0:00:03]} 3. d4 {[%emt 0:00:02]} cxd4 {[%emt 0:00:01]} 4. Nxd4 {[%emt 0:00:00]} Nf6 {[%emt 0:00:01]} 5. Nc3 {[%emt 0:00:00]} a6 {[%emt 0:00:01]} 6. Bg5 {[%emt 0:00:12]} Nbd7 {[%emt 0:00:04]} 7. Qe2 {[%emt 0:00:12]} h6 {[%emt 0:00:20]} 8. Bh4 {[%emt 0:00:06]} e6 {[%emt 0:00:12]} 9. O-O-O {[%emt 0:00:11]} Qc7 {[%emt 0:00:05]} 10. f4 {[%emt 0:00:04]} b5 {[%emt 0:00:11]} 11. a3 {[%emt 0:00:36]} Bb7 {[%emt 0:00:35]} 12. g4 {[%emt 0:00:16]} Be7 {[%emt 0:00:42]} 13. Bg2 {[%emt 0:00:16]} Rc8 {[%emt 0:01:45]} 14. Rhe1 {[%emt 0:00:42]} g5 {[%emt 0:00:17]} 15. fxg5 {[%emt 0:00:03]} hxg5 {[%emt 0:00:03]} 16. Bxg5 {[%emt 0:00:35]} Rg8 {[%emt 0:00:41]} 17. h4 {[%emt 0:00:24]} Ne5 {[%emt 0:00:03]} 18. Bxf6 {[%emt 0:01:42]} Bxf6 {[%emt 0:00:04]} 19. g5 {[%emt 0:00:01]} Be7 {[%emt 0:00:03]} 20. Bh3 {[%emt 0:00:21]} Rh8 {[%emt 0:00:44]} 21. Nxe6 {[%emt 0:00:41]} fxe6 {[%emt 0:00:04]} 22. Bxe6 {[%emt 0:00:00]} Rxh4 {[%emt 0:00:01]} 23. Bxc8 {[%emt 0:00:02]} Bxg5+ {[%emt 0:00:12]} 24. Kb1 {[%emt 0:00:02]} Bxc8 {[%emt 0:00:01]} 25. Nd5 {[%emt 0:01:05]} Qg7 {[%emt 0:00:07]} 26. Qf2 {[%emt 0:01:13]} Bg4 {[%emt 0:00:20]} 27. Rd4 {[%emt 0:00:27]} Qf7 {[%emt 0:00:21]} 28. Qg2 {[%emt 0:00:14]} Qh5 {[%emt 0:01:06]} 29. Qf2 {[%emt 0:00:04]} Rh2 {[%emt 0:00:19]} 30. Nc7+ {[%emt 0:00:02]} Kd7 {[%emt 0:00:22]} 31. Qf8 {[%emt 0:00:01]} Be7 {[%emt 0:00:10]} 32. Qb8 {[%emt 0:00:02]} Qh8 {[%emt 0:00:09]} 33. Qb7 {[%emt 0:00:08]} Qc8 {[%emt 0:00:04]} 34. Qxc8+ {[%emt 0:00:03]} Kxc8 {[%emt 0:00:00]} 35. Nd5 {[%emt 0:00:02]} Bh4 {[%emt 0:00:03]} 36. Rg1 Bf2 {[%emt 0:00:06]} 0-1

[Event "CCT Chessable Masters Play-In 2025"]
[Site "Online"]
[Date "2025.02.17"]
[Round "1.28"]
[White "Mendonca, Leon Luke"]
[Black "Bortnyk, Olexandr"]
[Result "0-1"]
[ECO "A50"]
[WhiteElo "2641"]
[BlackElo "2601"]
[PlyCount "138"]
[EventDate "2025.02.13"]
[EventType "swiss"]
[EventCountry "NET"]
[TimeControl "600"]
[WhiteClock "0:00:03"]
[BlackClock "0:00:15"]

1. d4 {[%emt 0:00:02]} Nf6 {[%emt 0:00:47]} 2. c4 {[%emt 0:00:01]} b6 {[%emt 0:00:07]} 3. Nc3 {[%emt 0:00:09]} Bb7 {[%emt 0:00:02]} 4. Qc2 {[%emt 0:00:09]} g6 {[%emt 0:00:08]} 5. e4 {[%emt 0:00:03]} d6 {[%emt 0:00:01]} 6. Nf3 {[%emt 0:00:02]} Nbd7 {[%emt 0:00:12]} 7. Be2 {[%emt 0:00:02]} e5 {[%emt 0:00:01]} 8. d5 {[%emt 0:00:04]} h5 {[%emt 0:00:03]} 9. O-O {[%emt 0:00:02]} Bh6 {[%emt 0:00:03]} 10. Bxh6 {[%emt 0:00:04]} Rxh6 {[%emt 0:00:00]} 11. b4 {[%emt 0:00:08]} Kf8 {[%emt 0:00:14]} 12. Nd2 {[%emt 0:00:07]} Kg7 {[%emt 0:00:07]} 13. Nb3 {[%emt 0:00:01]} a5 {[%emt 0:00:10]} 14. bxa5 {[%emt 0:00:06]} bxa5 {[%emt 0:00:03]} 15. a4 {[%emt 0:00:24]} c5 {[%emt 0:00:28]} 16. Nb5 {[%emt 0:00:39]} Ra6 {[%emt 0:01:03]} 17. f4 {[%emt 0:00:15]} exf4 {[%emt 0:01:03]} 18. Rxf4 {[%emt 0:00:00]} Ne5 {[%emt 0:00:04]} 19. Raf1 {[%emt 0:00:02]} Nfd7 {[%emt 0:00:03]} 20. Qc3 {[%emt 0:00:26]} Kg8 {[%emt 0:00:15]} 21. h3 {[%emt 0:00:31]} Rh7 {[%emt 0:00:03]} 22. Qg3 {[%emt 0:01:12]} Bc8 {[%emt 0:00:13]} 23. Nd2 {[%emt 0:00:20]} Qe7 {[%emt 0:00:56]} 24. R1f2 {[%emt 0:00:06]} Rg7 {[%emt 0:00:12]} 25. Rf1 {[%emt 0:00:27]} Rh7 {[%emt 0:00:44]} 26. Kh1 {[%emt 0:00:06]} Rg7 {[%emt 0:00:01]} 27. R4f2 {[%emt 0:00:08]} Nb6 {[%emt 0:00:05]} 28. Qb3 {[%emt 0:00:11]} Nbd7 {[%emt 0:00:02]} 29. Nb1 {[%emt 0:00:50]} Rb6 {[%emt 0:00:18]} 30. Qc3 {[%emt 0:00:03]} Ra6 {[%emt 0:00:01]} 31. N1a3 {[%emt 0:00:01]} Nf8 {[%emt 0:00:08]} 32. Nc2 {[%emt 0:00:12]} Nh7 {[%emt 0:00:02]} 33. Qg3 {[%emt 0:00:15]} Bd7 {[%emt 0:00:06]} 34. Ne3 {[%emt 0:00:03]} Rb6 {[%emt 0:00:20]} 35. Ra1 {[%emt 0:00:05]} Kh8 {[%emt 0:00:24]} 36. Rff1 {[%emt 0:00:04]} Qg5 {[%emt 0:00:02]} 37. Qf2 {[%emt 0:00:02]} Rg8 {[%emt 0:00:01]} 38. Ra3 {[%emt 0:00:05]} Rf8 {[%emt 0:00:01]} 39. Qe1 {[%emt 0:00:05]} Ra6 {[%emt 0:00:07]} 40. Qf2 {[%emt 0:00:09]} Kg8 {[%emt 0:00:01]} 41. Kh2 {[%emt 0:00:18]} Rb6 {[%emt 0:00:03]} 42. Kh1 {[%emt 0:00:01]} Ra6 {[%emt 0:00:01]} 43. Kh2 {[%emt 0:00:20]} f5 {[%emt 0:00:02]} 44. exf5 {[%emt 0:00:01]} Bxf5 {[%emt 0:00:01]} 45. Nxf5 {[%emt 0:00:05]} Rxf5 {[%emt 0:00:00]} 46. Qe3 {[%emt 0:00:09]} Rxf1 {[%emt 0:00:04]} 47. Bxf1 {[%emt 0:00:01]} Qh4 {[%emt 0:00:09]} 48. Qg3 {[%emt 0:00:01]} Qxg3+ {[%emt 0:00:03]} 49. Kxg3 {[%emt 0:00:01]} Nf6 {[%emt 0:00:01]} 50. Kf4 {[%emt 0:00:04]} Nfd7 {[%emt 0:00:11]} 51. Rb3 {[%emt 0:00:08]} Rb6 {[%emt 0:00:04]} 52. Kg5 {[%emt 0:00:04]} Kg7 {[%emt 0:00:01]} 53. Be2 {[%emt 0:00:04]} Nf7+ {[%emt 0:00:01]} 54. Kf4 {[%emt 0:00:01]} Nde5 {[%emt 0:00:00]} 55. h4 {[%emt 0:00:07]} Kf6 {[%emt 0:00:01]} 56. Ke4 {[%emt 0:00:02]} Rb8 {[%emt 0:00:01]} 57. Rb1 {[%emt 0:00:02]} Ke7 {[%emt 0:00:01]} 58. Rf1 {[%emt 0:00:01]} Nh6 {[%emt 0:00:01]} 59. Nxd6 {[%emt 0:00:16]} Rb2 {[%emt 0:00:08]} 60. Nc8+ {[%emt 0:00:04]} Kd7 {[%emt 0:00:01]} 61. Nb6+ {[%emt 0:00:06]} Kc7 {[%emt 0:00:04]} 62. Bd1 {[%emt 0:00:06]} Nhg4 {[%emt 0:00:02]} 63. Bxg4 {[%emt 0:00:04]} Nxg4 {[%emt 0:00:00]} 64. Na8+ {[%emt 0:00:03]} Kb7 {[%emt 0:00:02]} 65. d6 {[%emt 0:00:00]} Rd2 {[%emt 0:00:01]} 66. Nc7 {[%emt 0:00:02]} Rd4+ {[%emt 0:00:00]} 67. Kf3 {[%emt 0:00:01]} Nh2+ {[%emt 0:00:00]} 68. Ke3 {[%emt 0:00:02]} Nxf1+ {[%emt 0:00:01]} 69. Kf2 {[%emt 0:00:02]} Nd2 {[%emt 0:00:00]} 0-1

[Event "CCT Chessable Masters Play-In 2025"]
[Site "Online"]
[Date "2025.02.17"]
[Round "1.29"]
[White "Daneshvar, Bardiya"]
[Black "Onyshchuk, Volodymyr"]
[Result "1-0"]
[ECO "A41"]
[WhiteElo "2604"]
[BlackElo "2610"]
[PlyCount "103"]
[EventDate "2025.02.13"]
[EventType "swiss"]
[EventCountry "NET"]
[TimeControl "600"]
[WhiteClock "0:00:27"]
[BlackClock "0:00:07"]

1. d4 {[%emt 0:00:04]} d6 {[%emt 0:00:03]} 2. Nf3 {[%emt 0:00:02]} g6 {[%emt 0:00:01]} 3. c4 {[%emt 0:00:00]} Bg7 {[%emt 0:00:01]} 4. Nc3 {[%emt 0:00:00]} e5 {[%emt 0:00:02]} 5. dxe5 {[%emt 0:00:01]} dxe5 {[%emt 0:00:01]} 6. Qxd8+ {[%emt 0:00:00]} Kxd8 {[%emt 0:00:00]} 7. g3 {[%emt 0:00:01]} Be6 {[%emt 0:00:21]} 8. Ng5 {[%emt 0:00:26]} Bxc4 {[%emt 0:00:04]} 9. b3 {[%emt 0:00:01]} Be6 {[%emt 0:00:01]} 10. Nxe6+ {[%emt 0:00:01]} fxe6 {[%emt 0:00:04]} 11. Bh3 {[%emt 0:00:00]} Nc6 {[%emt 0:01:36]} 12. Ba3 {[%emt 0:00:21]} Nd4 {[%emt 0:01:39]} 13. O-O-O {[%emt 0:00:32]} Kc8 {[%emt 0:00:01]} 14. e3 {[%emt 0:02:25]} Nf5 {[%emt 0:00:02]} 15. g4 {[%emt 0:00:06]} Nh4 {[%emt 0:00:06]} 16. g5 {[%emt 0:00:04]} Nf5 {[%emt 0:00:06]} 17. Rd2 {[%emt 0:00:10]} e4 {[%emt 0:01:54]} 18. Rhd1 {[%emt 0:00:30]} Ngh6 {[%emt 0:00:23]} 19. Nxe4 {[%emt 0:00:26]} Nf7 {[%emt 0:00:01]} 20. Rd7 {[%emt 0:00:06]} Ne5 {[%emt 0:01:00]} 21. Bxf5 {[%emt 0:00:45]} exf5 {[%emt 0:00:28]} 22. Rxg7 {[%emt 0:00:04]} fxe4 {[%emt 0:00:01]} 23. Rd5 {[%emt 0:00:04]} Nd3+ {[%emt 0:00:09]} 24. Kb1 {[%emt 0:00:08]} b6 {[%emt 0:00:02]} 25. f3 {[%emt 0:00:19]} Kb7 {[%emt 0:00:03]} 26. fxe4 {[%emt 0:00:02]} Nf2 {[%emt 0:00:02]} 27. e5 {[%emt 0:00:07]} Ne4 {[%emt 0:00:10]} 28. Rdd7 {[%emt 0:00:10]} Rac8 {[%emt 0:00:01]} 29. Bd6 {[%emt 0:00:34]} Nxg5 {[%emt 0:00:12]} 30. Bxc7 {[%emt 0:00:05]} Ne6 {[%emt 0:00:01]} 31. Bd6+ {[%emt 0:00:02]} Kc6 {[%emt 0:00:01]} 32. Rge7 {[%emt 0:00:06]} Rhf8 {[%emt 0:00:11]} 33. Rxa7 {[%emt 0:00:12]} Rf1+ {[%emt 0:00:02]} 34. Kb2 {[%emt 0:00:04]} Rf2+ {[%emt 0:00:04]} 35. Kc3 {[%emt 0:00:32]} Kd5+ {[%emt 0:00:30]} 36. Kb4 {[%emt 0:00:03]} Ng5 {[%emt 0:00:03]} 37. h4 {[%emt 0:00:20]} Ne4 {[%emt 0:00:03]} 38. Rxh7 {[%emt 0:00:08]} Rcc2 {[%emt 0:00:09]} 39. Rhd7 {[%emt 0:00:06]} Rxa2 {[%emt 0:00:02]} 40. Bb8+ {[%emt 0:00:10]} Ke6 {[%emt 0:00:01]} 41. Re7+ {[%emt 0:00:04]} Kd5 {[%emt 0:00:01]} 42. Rad7+ {[%emt 0:00:03]} Kc6 {[%emt 0:00:00]} 43. Rc7+ {[%emt 0:00:01]} Kd5 {[%emt 0:00:01]} 44. Kb5 {[%emt 0:00:02]} Rfb2 {[%emt 0:00:02]} 45. Rcd7+ {[%emt 0:00:02]} Nd6+ {[%emt 0:00:00]} 46. Rxd6+ {[%emt 0:00:01]} Ke4 {[%emt 0:00:01]} 47. b4 {[%emt 0:00:00]} Rb3 {[%emt 0:00:01]} 48. Rxb6 {[%emt 0:00:01]} Kf3 {[%emt 0:00:01]} 49. Bd6 {[%emt 0:00:01]} Ke2 {[%emt 0:00:01]} 50. Bc5 {[%emt 0:00:00]} Rd3 {[%emt 0:00:01]} 51. e6 {[%emt 0:00:00]} Ra8 {[%emt 0:00:03]} 52. Rd7 {[%emt 0:00:01]} 1-0